Workbook

Sheet Method Comparison
A1: NOTICE: This document is an example only. It must be revised to reflect your lab’s specific processes and/or specific protocol requirements.
A2: Approved and current. Effective starting 10-Aug-2023. Last reviewed on 10-Aug-2023. RDP 504 (version 1.0). Accuracy (WBC)_Example. Page 1 of 2
B3: Quantitative Method Comparison
B5: Method being evaluated (Y): | E5: Cell Dyn Ruby | J5: Date: | K5: 2023-07-19
B6: Reference Method (X): | E6: Cell Dyn 3500 | J6: Total Allowable Error (TEa):
D7: Analyte: | E7: WBC | J7: Conc. | K7: Pct.
D8: Units: | E8: 10E3/uL | J8: 0.12 | K8: 15
A10: =IF(AND($C$37>0.975,$H$32>=19),"Experiment: PASSED","Experiment: FAILED (See Note Below**)") -> Experiment: PASSED
A11: Spec# | B11: X | C11: Y | D11: Δ | E11: Error Index | F11: High lmt | G11: Low lmt | H11: Grade
A12: 1 | B12: 3.03 | C12: 3 | D12: =C12-B12 -> -0.03 | E12: =IF($J$8>B12*($K$8/100),D12/$J$8,D12/(B12*($K$8/100))) -> -0.06600660066 | F12: =IF(B12+$J$8>B12*((100+$K$8)/100),B12+$J$8,B12*((100+$K$8)/100)) -> 3.4845 | G12: =IF(B12-$J$8<B12*((100-$K$8)/100),B12-$J$8,B12*((100-$K$8)/100)) -> 2.5755 | H12: =IF(AND(E12>=-1,E12<=1),1,0) -> 1
A13: =A12+1 -> 2 | B13: 7.66 | C13: 7.78 | D13: =C13-B13 -> 0.12 | E13: =IF($J$8>B13*($K$8/100),D13/$J$8,D13/(B13*($K$8/100))) -> 0.1044386423 | F13: =IF(B13+$J$8>B13*((100+$K$8)/100),B13+$J$8,B13*((100+$K$8)/100)) -> 8.809 | G13: =IF(B13-$J$8<B13*((100-$K$8)/100),B13-$J$8,B13*((100-$K$8)/100)) -> 6.511 | H13: =IF(AND(E13>=-1,E13<=1),1,0) -> 1
A14: =A13+1 -> 3 | B14: 20.23 | C14: 20.8 | D14: =C14-B14 -> 0.57 | E14: =IF($J$8>B14*($K$8/100),D14/$J$8,D14/(B14*($K$8/100))) -> 0.1878398418 | F14: =IF(B14+$J$8>B14*((100+$K$8)/100),B14+$J$8,B14*((100+$K$8)/100)) -> 23.2645 | G14: =IF(B14-$J$8<B14*((100-$K$8)/100),B14-$J$8,B14*((100-$K$8)/100)) -> 17.1955 | H14: =IF(AND(E14>=-1,E14<=1),1,0) -> 1
A15: =A14+1 -> 4 | B15: 3.18 | C15: 3.02 | D15: =C15-B15 -> -0.16 | E15: =IF($J$8>B15*($K$8/100),D15/$J$8,D15/(B15*($K$8/100))) -> -0.3354297694 | F15: =IF(B15+$J$8>B15*((100+$K$8)/100),B15+$J$8,B15*((100+$K$8)/100)) -> 3.657 | G15: =IF(B15-$J$8<B15*((100-$K$8)/100),B15-$J$8,B15*((100-$K$8)/100)) -> 2.703 | H15: =IF(AND(E15>=-1,E15<=1),1,0) -> 1
A16: =A15+1 -> 5 | B16: 20.01 | C16: 20.7 | D16: =C16-B16 -> 0.69 | E16: =IF($J$8>B16*($K$8/100),D16/$J$8,D16/(B16*($K$8/100))) -> 0.2298850575 | F16: =IF(B16+$J$8>B16*((100+$K$8)/100),B16+$J$8,B16*((100+$K$8)/100)) -> 23.0115 | G16: =IF(B16-$J$8<B16*((100-$K$8)/100),B16-$J$8,B16*((100-$K$8)/100)) -> 17.0085 | H16: =IF(AND(E16>=-1,E16<=1),1,0) -> 1
A17: =A16+1 -> 6 | B17: 3.41 | C17: 2.88 | D17: =C17-B17 -> -0.53 | E17: =IF($J$8>B17*($K$8/100),D17/$J$8,D17/(B17*($K$8/100))) -> -1.036168133 | F17: =IF(B17+$J$8>B17*((100+$K$8)/100),B17+$J$8,B17*((100+$K$8)/100)) -> 3.9215 | G17: =IF(B17-$J$8<B17*((100-$K$8)/100),B17-$J$8,B17*((100-$K$8)/100)) -> 2.8985 | H17: =IF(AND(E17>=-1,E17<=1),1,0) -> 0
A18: =A17+1 -> 7 | B18: 8.35 | C18: 7.99 | D18: =C18-B18 -> -0.36 | E18: =IF($J$8>B18*($K$8/100),D18/$J$8,D18/(B18*($K$8/100))) -> -0.2874251497 | F18: =IF(B18+$J$8>B18*((100+$K$8)/100),B18+$J$8,B18*((100+$K$8)/100)) -> 9.6025 | G18: =IF(B18-$J$8<B18*((100-$K$8)/100),B18-$J$8,B18*((100-$K$8)/100)) -> 7.0975 | H18: =IF(AND(E18>=-1,E18<=1),1,0) -> 1
A19: =A18+1 -> 8 | B19: 3.35 | C19: 3.23 | D19: =C19-B19 -> -0.12 | E19: =IF($J$8>B19*($K$8/100),D19/$J$8,D19/(B19*($K$8/100))) -> -0.2388059701 | F19: =IF(B19+$J$8>B19*((100+$K$8)/100),B19+$J$8,B19*((100+$K$8)/100)) -> 3.8525 | G19: =IF(B19-$J$8<B19*((100-$K$8)/100),B19-$J$8,B19*((100-$K$8)/100)) -> 2.8475 | H19: =IF(AND(E19>=-1,E19<=1),1,0) -> 1
A20: =A19+1 -> 9 | B20: 21.16 | C20: 21.1 | D20: =C20-B20 -> -0.06 | E20: =IF($J$8>B20*($K$8/100),D20/$J$8,D20/(B20*($K$8/100))) -> -0.01890359168 | F20: =IF(B20+$J$8>B20*((100+$K$8)/100),B20+$J$8,B20*((100+$K$8)/100)) -> 24.334 | G20: =IF(B20-$J$8<B20*((100-$K$8)/100),B20-$J$8,B20*((100-$K$8)/100)) -> 17.986 | H20: =IF(AND(E20>=-1,E20<=1),1,0) -> 1
A21: =A20+1 -> 10 | B21: 21.23 | C21: 21 | D21: =C21-B21 -> -0.23 | E21: =IF($J$8>B21*($K$8/100),D21/$J$8,D21/(B21*($K$8/100))) -> -0.07222483906 | F21: =IF(B21+$J$8>B21*((100+$K$8)/100),B21+$J$8,B21*((100+$K$8)/100)) -> 24.4145 | G21: =IF(B21-$J$8<B21*((100-$K$8)/100),B21-$J$8,B21*((100-$K$8)/100)) -> 18.0455 | H21: =IF(AND(E21>=-1,E21<=1),1,0) -> 1
A22: =A21+1 -> 11 | B22: 2.5 | C22: 2.7 | D22: =C22-B22 -> 0.2 | E22: =IF($J$8>B22*($K$8/100),D22/$J$8,D22/(B22*($K$8/100))) -> 0.5333333333 | F22: =IF(B22+$J$8>B22*((100+$K$8)/100),B22+$J$8,B22*((100+$K$8)/100)) -> 2.875 | G22: =IF(B22-$J$8<B22*((100-$K$8)/100),B22-$J$8,B22*((100-$K$8)/100)) -> 2.125 | H22: =IF(AND(E22>=-1,E22<=1),1,0) -> 1
A23: =A22+1 -> 12 | B23: 10.4 | C23: 10.6 | D23: =C23-B23 -> 0.2 | E23: =IF($J$8>B23*($K$8/100),D23/$J$8,D23/(B23*($K$8/100))) -> 0.1282051282 | F23: =IF(B23+$J$8>B23*((100+$K$8)/100),B23+$J$8,B23*((100+$K$8)/100)) -> 11.96 | G23: =IF(B23-$J$8<B23*((100-$K$8)/100),B23-$J$8,B23*((100-$K$8)/100)) -> 8.84 | H23: =IF(AND(E23>=-1,E23<=1),1,0) -> 1
A24: =A23+1 -> 13 | B24: 15.8 | C24: 16.3 | D24: =C24-B24 -> 0.5 | E24: =IF($J$8>B24*($K$8/100),D24/$J$8,D24/(B24*($K$8/100))) -> 0.2109704641 | F24: =IF(B24+$J$8>B24*((100+$K$8)/100),B24+$J$8,B24*((100+$K$8)/100)) -> 18.17 | G24: =IF(B24-$J$8<B24*((100-$K$8)/100),B24-$J$8,B24*((100-$K$8)/100)) -> 13.43 | H24: =IF(AND(E24>=-1,E24<=1),1,0) -> 1
A25: =A24+1 -> 14 | B25: 18.5 | C25: 19 | D25: =C25-B25 -> 0.5 | E25: =IF($J$8>B25*($K$8/100),D25/$J$8,D25/(B25*($K$8/100))) -> 0.1801801802 | F25: =IF(B25+$J$8>B25*((100+$K$8)/100),B25+$J$8,B25*((100+$K$8)/100)) -> 21.275 | G25: =IF(B25-$J$8<B25*((100-$K$8)/100),B25-$J$8,B25*((100-$K$8)/100)) -> 15.725 | H25: =IF(AND(E25>=-1,E25<=1),1,0) -> 1
A26: =A25+1 -> 15 | B26: 12.6 | C26: 13 | D26: =C26-B26 -> 0.4 | E26: =IF($J$8>B26*($K$8/100),D26/$J$8,D26/(B26*($K$8/100))) -> 0.2116402116 | F26: =IF(B26+$J$8>B26*((100+$K$8)/100),B26+$J$8,B26*((100+$K$8)/100)) -> 14.49 | G26: =IF(B26-$J$8<B26*((100-$K$8)/100),B26-$J$8,B26*((100-$K$8)/100)) -> 10.71 | H26: =IF(AND(E26>=-1,E26<=1),1,0) -> 1
A27: =A26+1 -> 16 | B27: 8.2 | C27: 7.8 | D27: =C27-B27 -> -0.4 | E27: =IF($J$8>B27*($K$8/100),D27/$J$8,D27/(B27*($K$8/100))) -> -0.325203252 | F27: =IF(B27+$J$8>B27*((100+$K$8)/100),B27+$J$8,B27*((100+$K$8)/100)) -> 9.43 | G27: =IF(B27-$J$8<B27*((100-$K$8)/100),B27-$J$8,B27*((100-$K$8)/100)) -> 6.97 | H27: =IF(AND(E27>=-1,E27<=1),1,0) -> 1
A28: =A27+1 -> 17 | B28: 6.9 | C28: 6.4 | D28: =C28-B28 -> -0.5 | E28: =IF($J$8>B28*($K$8/100),D28/$J$8,D28/(B28*($K$8/100))) -> -0.4830917874 | F28: =IF(B28+$J$8>B28*((100+$K$8)/100),B28+$J$8,B28*((100+$K$8)/100)) -> 7.935 | G28: =IF(B28-$J$8<B28*((100-$K$8)/100),B28-$J$8,B28*((100-$K$8)/100)) -> 5.865 | H28: =IF(AND(E28>=-1,E28<=1),1,0) -> 1
A29: =A28+1 -> 18 | B29: 5.1 | C29: 5.2 | D29: =C29-B29 -> 0.1 | E29: =IF($J$8>B29*($K$8/100),D29/$J$8,D29/(B29*($K$8/100))) -> 0.1307189542 | F29: =IF(B29+$J$8>B29*((100+$K$8)/100),B29+$J$8,B29*((100+$K$8)/100)) -> 5.865 | G29: =IF(B29-$J$8<B29*((100-$K$8)/100),B29-$J$8,B29*((100-$K$8)/100)) -> 4.335 | H29: =IF(AND(E29>=-1,E29<=1),1,0) -> 1
A30: =A29+1 -> 19 | B30: 4.6 | C30: 4.8 | D30: =C30-B30 -> 0.2 | E30: =IF($J$8>B30*($K$8/100),D30/$J$8,D30/(B30*($K$8/100))) -> 0.2898550725 | F30: =IF(B30+$J$8>B30*((100+$K$8)/100),B30+$J$8,B30*((100+$K$8)/100)) -> 5.29 | G30: =IF(B30-$J$8<B30*((100-$K$8)/100),B30-$J$8,B30*((100-$K$8)/100)) -> 3.91 | H30: =IF(AND(E30>=-1,E30<=1),1,0) -> 1
A31: =A30+1 -> 20 | B31: 19.5 | C31: 20 | D31: =C31-B31 -> 0.5 | E31: =IF($J$8>B31*($K$8/100),D31/$J$8,D31/(B31*($K$8/100))) -> 0.1709401709 | F31: =IF(B31+$J$8>B31*((100+$K$8)/100),B31+$J$8,B31*((100+$K$8)/100)) -> 22.425 | G31: =IF(B31-$J$8<B31*((100-$K$8)/100),B31-$J$8,B31*((100-$K$8)/100)) -> 16.575 | H31: =IF(AND(E31>=-1,E31<=1),1,0) -> 1
A32: Mean | B32: =AVERAGE(B12:B31) -> 10.7855 | C32: =AVERAGE(C12:C31) -> 10.865 | D32: =AVERAGE(D12:D31) -> 0.0795 | E32: =AVERAGE(E12:E31) -> -0.02426260182 | H32: =SUM(H12:H31) -> 19
A33: Min | B33: =MIN(B12:B31) -> 2.5 | C33: =MIN(C12:C31) -> 2.7 | D33: =MIN(D12:D31) -> -0.53 | E33: =MIN(E12:E31) -> -1.036168133 | F33: =IF($H$32<19,"**Greater than 5% of the error indices are unacceptable. IF the correlation coeficient is greater than 0.975 (see below-left), see Alt Method Comparison tab for evaluation.","") -> 
A34: Max | B34: =MAX(B12:B31) -> 21.23 | C34: =MAX(C12:C31) -> 21.1 | D34: =MAX(D12:D31) -> 0.69 | E34: =MAX(E12:E31) -> 0.5333333333
A35: Slope | C35: =SLOPE(C12:C31,B12:B31) -> 1.027475053
A36: Intercept | C36: =INTERCEPT(C12:C31,B12:B31) -> -0.2168321799
A37: Correl. Coef. (R) | C37: =CORREL(B12:B31,C12:C31) -> 0.9990522659 | D37: =IF(C37<0.975,"**Correlation Coefficient is too low. Troubleshoot Assay and re-analyse specimens","") -> 

Sheet Alt Method Comparison
A1: NOTICE: This document is an example only. It must be revised to reflect your lab’s specific processes and/or specific protocol requirements.
A2: Approved and current. Effective starting 10-Aug-2023. Last reviewed on 10-Aug-2023. RDP 504 (version 1.0). Accuracy (WBC)_Example. Page 2 of 2
G3: Alternate (Quantitative) Method Comparison | R3: =(D12/B12)*100 -> -0.9900990099
R4: =(D13/B13)*100 -> 1.566579634
R5: =(D14/B14)*100 -> 2.817597627
G6: Method being evaluated: | J6: ='Method Comparison'!E5 -> Cell Dyn Ruby | O6: Date: | P6: ='Method Comparison'!K5 -> 45126 | R6: =(D15/B15)*100 -> -5.031446541
H7: Reference Method: | J7: ='Method Comparison'!E6 -> Cell Dyn 3500 | O7: Total Allowable Error (TEa): | R7: =(D16/B16)*100 -> 3.448275862
I8: Analyte: | J8: ='Method Comparison'!E7 -> WBC | O8: Conc. | P8: Pct. | R8: =(D17/B17)*100 -> -15.54252199
I9: Units: | J9: =IF('Method Comparison'!E8>0,'Method Comparison'!E8,"Units not entered") -> 10E3/uL | O9: ='Method Comparison'!J8 -> 0.12 | P9: ='Method Comparison'!K8 -> 15 | R9: =(D18/B18)*100 -> -4.311377246
R10: =(D19/B19)*100 -> -3.582089552
A11: Spec# | B11: X | C11: Y | D11: ∆ | E11: ((Y-X)-Bias)^2 | R11: =(D20/B20)*100 -> -0.2835538752
A12: 1 | B12: ='Method Comparison'!B12 -> 3.03 | C12: ='Method Comparison'!C12 -> 3 | D12: =C12-B12 -> -0.03 | E12: =POWER(D12-$D$35,2) -> 0.01199025 | F12: =E12/19 -> 0.0006310657895 | R12: =(D21/B21)*100 -> -1.083372586
A13: =A12+1 -> 2 | B13: ='Method Comparison'!B13 -> 7.66 | C13: ='Method Comparison'!C13 -> 7.78 | D13: =C13-B13 -> 0.12 | E13: =POWER(D13-$D$35,2) -> 0.00164025 | F13: =E13/19 -> 8.632894737e-05 | R13: =(D22/B22)*100 -> 8
A14: =A13+1 -> 3 | B14: ='Method Comparison'!B14 -> 20.23 | C14: ='Method Comparison'!C14 -> 20.8 | D14: =C14-B14 -> 0.57 | E14: =POWER(D14-$D$35,2) -> 0.24059025 | F14: =E14/19 -> 0.01266264474 | R14: =(D23/B23)*100 -> 1.923076923
A15: =A14+1 -> 4 | B15: ='Method Comparison'!B15 -> 3.18 | C15: ='Method Comparison'!C15 -> 3.02 | D15: =C15-B15 -> -0.16 | E15: =POWER(D15-$D$35,2) -> 0.05736025 | F15: =E15/19 -> 0.003018960526 | R15: =(D24/B24)*100 -> 3.164556962
A16: =A15+1 -> 5 | B16: ='Method Comparison'!B16 -> 20.01 | C16: ='Method Comparison'!C16 -> 20.7 | D16: =C16-B16 -> 0.69 | E16: =POWER(D16-$D$35,2) -> 0.37271025 | F16: =E16/19 -> 0.01961632895 | H16: 0 | I16: =J38 -> -0.2168321799 | R16: =(D25/B25)*100 -> 2.702702703
A17: =A16+1 -> 6 | B17: ='Method Comparison'!B17 -> 3.41 | C17: ='Method Comparison'!C17 -> 2.88 | D17: =C17-B17 -> -0.53 | E17: =POWER(D17-$D$35,2) -> 0.37149025 | F17: =E17/19 -> 0.01955211842 | H17: =B12 -> 3.03 | I17: =C12 -> 3 | R17: =(D26/B26)*100 -> 3.174603175
A18: =A17+1 -> 7 | B18: ='Method Comparison'!B18 -> 8.35 | C18: ='Method Comparison'!C18 -> 7.99 | D18: =C18-B18 -> -0.36 | E18: =POWER(D18-$D$35,2) -> 0.19316025 | F18: =E18/19 -> 0.01016632895 | R18: =(D27/B27)*100 -> -4.87804878
A19: =A18+1 -> 8 | B19: ='Method Comparison'!B19 -> 3.35 | C19: ='Method Comparison'!C19 -> 3.23 | D19: =C19-B19 -> -0.12 | E19: =POWER(D19-$D$35,2) -> 0.03980025 | F19: =E19/19 -> 0.00209475 | R19: =(D28/B28)*100 -> -7.246376812
A20: =A19+1 -> 9 | B20: ='Method Comparison'!B20 -> 21.16 | C20: ='Method Comparison'!C20 -> 21.1 | D20: =C20-B20 -> -0.06 | E20: =POWER(D20-$D$35,2) -> 0.01946025 | F20: =E20/19 -> 0.001024223684 | R20: =(D29/B29)*100 -> 1.960784314
A21: =A20+1 -> 10 | B21: ='Method Comparison'!B21 -> 21.23 | C21: ='Method Comparison'!C21 -> 21 | D21: =C21-B21 -> -0.23 | E21: =POWER(D21-$D$35,2) -> 0.09579025 | F21: =E21/19 -> 0.005041592105 | R21: =(D30/B30)*100 -> 4.347826087
A22: =A21+1 -> 11 | B22: ='Method Comparison'!B22 -> 2.5 | C22: ='Method Comparison'!C22 -> 2.7 | D22: =C22-B22 -> 0.2 | E22: =POWER(D22-$D$35,2) -> 0.01452025 | F22: =E22/19 -> 0.0007642236842 | R22: =(D31/B31)*100 -> 2.564102564
A23: =A22+1 -> 12 | B23: ='Method Comparison'!B23 -> 10.4 | C23: ='Method Comparison'!C23 -> 10.6 | D23: =C23-B23 -> 0.2 | E23: =POWER(D23-$D$35,2) -> 0.01452025 | F23: =E23/19 -> 0.0007642236842
A24: =A23+1 -> 13 | B24: ='Method Comparison'!B24 -> 15.8 | C24: ='Method Comparison'!C24 -> 16.3 | D24: =C24-B24 -> 0.5 | E24: =POWER(D24-$D$35,2) -> 0.17682025 | F24: =E24/19 -> 0.009306328947
A25: =A24+1 -> 14 | B25: ='Method Comparison'!B25 -> 18.5 | C25: ='Method Comparison'!C25 -> 19 | D25: =C25-B25 -> 0.5 | E25: =POWER(D25-$D$35,2) -> 0.17682025 | F25: =E25/19 -> 0.009306328947
A26: =A25+1 -> 15 | B26: ='Method Comparison'!B26 -> 12.6 | C26: ='Method Comparison'!C26 -> 13 | D26: =C26-B26 -> 0.4 | E26: =POWER(D26-$D$35,2) -> 0.10272025 | F26: =E26/19 -> 0.005406328947 | H26: X Method | J26: Y Method | M26: 95% Conf. Limits | Q26: Grade
A27: =A26+1 -> 16 | B27: ='Method Comparison'!B27 -> 8.2 | C27: ='Method Comparison'!C27 -> 7.8 | D27: =C27-B27 -> -0.4 | E27: =POWER(D27-$D$35,2) -> 0.22992025 | F27: =E27/19 -> 0.01210106579 | H27: MDP | J27: Pred. MDP | M27: Low | O27: High
A28: =A27+1 -> 17 | B28: ='Method Comparison'!B28 -> 6.9 | C28: ='Method Comparison'!C28 -> 6.4 | D28: =C28-B28 -> -0.5 | E28: =POWER(D28-$D$35,2) -> 0.33582025 | F28: =E28/19 -> 0.01767475 | G28: =IF(($P$9/100)*H28>$O$9,($P$9/100)*H28,$O$9) -> 7.5 | H28: 50 | J28: =IF((H28*$J$37)+$J$38>0,(H28*$J$37)+$J$38,"-") -> 51.15692045 | M28: =IF(H28>0,(H28*($J$37-$L$37))+($J$38-$L$38),"-") -> 50.49411551 | O28: =IF(H28>0,(H28*($J$37+$L$37))+($J$38+$L$38),"-") -> 51.81972539 | Q28: =IF(AND(ABS(M28-H28)<G28,ABS(O28-H28)<G28),"Acceptable","Unacceptable") -> Acceptable
A29: =A28+1 -> 18 | B29: ='Method Comparison'!B29 -> 5.1 | C29: ='Method Comparison'!C29 -> 5.2 | D29: =C29-B29 -> 0.1 | E29: =POWER(D29-$D$35,2) -> 0.00042025 | F29: =E29/19 -> 2.211842105e-05 | G29: =IF(($P$9/100)*H29>$O$9,($P$9/100)*H29,$O$9) -> 10.5 | H29: 70 | J29: =IF((H29*J37)+J38>0,(H29*J37)+J38,"-") -> 71.7064215 | M29: =IF(H29>0,(H29*($J$37-$L$37))+($J$38-$L$38),"-") -> 70.83259241 | O29: =IF(H29>0,(H29*($J$37+$L$37))+($J$38+$L$38),"-") -> 72.58025059 | Q29: =IF(AND(ABS(M29-H29)<G29,ABS(O29-H29)<G29),"Acceptable","Unacceptable") -> Acceptable
A30: =A29+1 -> 19 | B30: ='Method Comparison'!B30 -> 4.6 | C30: ='Method Comparison'!C30 -> 4.8 | D30: =C30-B30 -> 0.2 | E30: =POWER(D30-$D$35,2) -> 0.01452025 | F30: =E30/19 -> 0.0007642236842 | G30: =IF(($P$9/100)*H30>$O$9,($P$9/100)*H30,$O$9) -> 16.5 | H30: 110 | J30: =IF((H30*J37)+J38>0,(H30*J37)+J38,"-") -> 112.8054236 | M30: =IF(H30>0,(H30*($J$37-$L$37))+($J$38-$L$38),"-") -> 111.5095462 | O30: =IF(H30>0,(H30*($J$37+$L$37))+($J$38+$L$38),"-") -> 114.101301 | Q30: =IF(AND(ABS(M30-H30)<G30,ABS(O30-H30)<G30),"Acceptable","Unacceptable") -> Acceptable
A31: =A30+1 -> 20 | B31: ='Method Comparison'!B31 -> 19.5 | C31: ='Method Comparison'!C31 -> 20 | D31: =C31-B31 -> 0.5 | E31: =POWER(D31-$D$35,2) -> 0.17682025 | F31: =E31/19 -> 0.009306328947 | G31: =IF(($P$9/100)*H31>$O$9,($P$9/100)*H31,$O$9) -> 60 | H31: 400 | J31: =IF((H31*J37)+J38>0,(H31*J37)+J38,"-") -> 410.7731889 | M31: =IF(H31>0,(H31*($J$37-$L$37))+($J$38-$L$38),"-") -> 406.4174613 | O31: =IF(H31>0,(H31*($J$37+$L$37))+($J$38+$L$38),"-") -> 415.1289164 | Q31: =IF(AND(ABS(M31-H31)<G31,ABS(O31-H31)<G31),"Acceptable","Unacceptable") -> Acceptable
A32: Mean | B32: =AVERAGE(B12:B31) -> 10.7855 | C32: =AVERAGE(C12:C31) -> 10.865 | D32: =AVERAGE(D12:D31) -> 0.0795 | E32: =POWER(D32-$D$35,2) -> 1.491440149e-30 | F32: =SUM(F12:F31) -> 0.1393102632 | G32: =IF(($P$9/100)*H32>$O$9,($P$9/100)*H32,$O$9) -> 150 | H32: 1000 | J32: =IF((H32*J37)+J38>0,(H32*J37)+J38,"-") -> 1027.25822 | M32: =IF(H32>0,(H32*($J$37-$L$37))+($J$38-$L$38),"-") -> 1016.571768 | O32: =IF(H32>0,(H32*($J$37+$L$37))+($J$38+$L$38),"-") -> 1037.944672 | Q32: =IF(AND(ABS(M32-H32)<G32,ABS(O32-H32)<G32),"Acceptable","Unacceptable") -> Acceptable
A33: SD | B33: =STDEV(B11:B31) -> 7.106125212 | C33: =STDEV(C12:C31) -> 7.308292694 | D33: =STDEV(D12:D31) -> 0.373242901 | G33: =IF(($P$9/100)*H33>$O$9,($P$9/100)*H33,$O$9) -> 0.12
A34: Bias | D34: =C32-B32 -> 0.0795 | E34: =E32/19 -> 7.849684994e-32
D35: =ABS(D34) -> 0.0795
I36: Regression Statistics
I37: Slope | J37: =SLOPE(C12:C31,B12:B31) -> 1.027475053 | K37: ± | L37: =N38 -> 0.0105512074 | N37: =LINEST(C12:C31,B12:B31,TRUE,TRUE) -> 1.027475053 | O37: -0.2168321799
B38: Interc? | C38: =INDEX(LINEST(C12:C31,B12:B31,1,1),1,2) -> -0.2168321799 | I38: Intercept | J38: =INTERCEPT(C12:C31,B12:B31) -> -0.2168321799 | K38: ± | L38: =O38 -> 0.1352445743 | N38: 0.0105512074 | O38: 0.1352445743
B39: 0 | C39: 0 | I39: Std Err Est | J39: =STEYX(C12:C31,B12:B31) -> 0.3268224008 | N39: 0.9981054299 | O39: 0.3268224008
B40: =IF(B12*($P$9/100)>$O$9,B12+(B12*($P$9/100)),B12+$O$9) -> 3.4845 | C40: =IF($B12*($P$9/100)>$O$9,$B12-($B12*($P$9/100)),$B12-$O$9) -> 2.5755 | I40: slope err | J40: =INDEX(LINEST(C12:C31,B12:B31,1,1),2,1) -> 0.0105512074 | N40: 9482.836269 | O40: 18
B41: =IF(B13*($P$9/100)>$O$9,B13+(B13*($P$9/100)),B13+$O$9) -> 8.809 | C41: =IF($B13*($P$9/100)>$O$9,$B13-($B13*($P$9/100)),$B13-$O$9) -> 6.511 | H41: Correl Coef (R): | J41: =CORREL(B12:B31,C12:C31) -> 0.9990522659 | N41: 1012.889068 | O41: 1.92263187
B42: =IF(B14*($P$9/100)>$O$9,B14+(B14*($P$9/100)),B14+$O$9) -> 23.2645 | C42: =IF($B14*($P$9/100)>$O$9,$B14-($B14*($P$9/100)),$B14-$O$9) -> 17.1955 | H42: Bias: | J42: =D34 -> 0.0795
B43: =IF(B15*($P$9/100)>$O$9,B15+(B15*($P$9/100)),B15+$O$9) -> 3.657 | C43: =IF($B15*($P$9/100)>$O$9,$B15-($B15*($P$9/100)),$B15-$O$9) -> 2.703 | H43: X Mean ± SD: | J43: =B32 -> 10.7855 | K43: ± | L43: =B33 -> 7.106125212
B44: =IF(B16*($P$9/100)>$O$9,B16+(B16*($P$9/100)),B16+$O$9) -> 23.0115 | C44: =IF($B16*($P$9/100)>$O$9,$B16-($B16*($P$9/100)),$B16-$O$9) -> 17.0085 | H44: Y Mean ± SD: | J44: =C32 -> 10.865 | K44: ± | L44: =C33 -> 7.308292694
B45: =IF(B17*($P$9/100)>$O$9,B17+(B17*($P$9/100)),B17+$O$9) -> 3.9215 | C45: =IF($B17*($P$9/100)>$O$9,$B17-($B17*($P$9/100)),$B17-$O$9) -> 2.8985 | H45: Std Dev Diffs: | J45: =SQRT(E34) -> 2.801728929e-16
B46: =IF(B18*($P$9/100)>$O$9,B18+(B18*($P$9/100)),B18+$O$9) -> 9.6025 | C46: =IF($B18*($P$9/100)>$O$9,$B18-($B18*($P$9/100)),$B18-$O$9) -> 7.0975
B47: =IF(B19*($P$9/100)>$O$9,B19+(B19*($P$9/100)),B19+$O$9) -> 3.8525 | C47: =IF($B19*($P$9/100)>$O$9,$B19-($B19*($P$9/100)),$B19-$O$9) -> 2.8475
B48: =IF(B20*($P$9/100)>$O$9,B20+(B20*($P$9/100)),B20+$O$9) -> 24.334 | C48: =IF($B20*($P$9/100)>$O$9,$B20-($B20*($P$9/100)),$B20-$O$9) -> 17.986
B49: =IF(B21*($P$9/100)>$O$9,B21+(B21*($P$9/100)),B21+$O$9) -> 24.4145 | C49: =IF($B21*($P$9/100)>$O$9,$B21-($B21*($P$9/100)),$B21-$O$9) -> 18.0455
B50: =IF(B22*($P$9/100)>$O$9,B22+(B22*($P$9/100)),B22+$O$9) -> 2.875 | C50: =IF($B22*($P$9/100)>$O$9,$B22-($B22*($P$9/100)),$B22-$O$9) -> 2.125
B51: =IF(B23*($P$9/100)>$O$9,B23+(B23*($P$9/100)),B23+$O$9) -> 11.96 | C51: =IF($B23*($P$9/100)>$O$9,$B23-($B23*($P$9/100)),$B23-$O$9) -> 8.84
B52: =IF(B24*($P$9/100)>$O$9,B24+(B24*($P$9/100)),B24+$O$9) -> 18.17 | C52: =IF($B24*($P$9/100)>$O$9,$B24-($B24*($P$9/100)),$B24-$O$9) -> 13.43
B53: =IF(B25*($P$9/100)>$O$9,B25+(B25*($P$9/100)),B25+$O$9) -> 21.275 | C53: =IF($B25*($P$9/100)>$O$9,$B25-($B25*($P$9/100)),$B25-$O$9) -> 15.725
B54: =IF(B26*($P$9/100)>$O$9,B26+(B26*($P$9/100)),B26+$O$9) -> 14.49 | C54: =IF($B26*($P$9/100)>$O$9,$B26-($B26*($P$9/100)),$B26-$O$9) -> 10.71
B55: =IF(B27*($P$9/100)>$O$9,B27+(B27*($P$9/100)),B27+$O$9) -> 9.43 | C55: =IF($B27*($P$9/100)>$O$9,$B27-($B27*($P$9/100)),$B27-$O$9) -> 6.97
B56: =IF(B28*($P$9/100)>$O$9,B28+(B28*($P$9/100)),B28+$O$9) -> 7.935 | C56: =IF($B28*($P$9/100)>$O$9,$B28-($B28*($P$9/100)),$B28-$O$9) -> 5.865
B57: =IF(B29*($P$9/100)>$O$9,B29+(B29*($P$9/100)),B29+$O$9) -> 5.865 | C57: =IF($B29*($P$9/100)>$O$9,$B29-($B29*($P$9/100)),$B29-$O$9) -> 4.335
B58: =IF(B30*($P$9/100)>$O$9,B30+(B30*($P$9/100)),B30+$O$9) -> 5.29 | C58: =IF($B30*($P$9/100)>$O$9,$B30-($B30*($P$9/100)),$B30-$O$9) -> 3.91
B59: =IF(B31*($P$9/100)>$O$9,B31+(B31*($P$9/100)),B31+$O$9) -> 22.425 | C59: =IF($B31*($P$9/100)>$O$9,$B31-($B31*($P$9/100)),$B31-$O$9) -> 16.575
